bitfinex-derivatives/quotes_SOLF0:USTF0_20251202
["timestamp","ask_amount","ask_price","bid_price","bid_amount"]
[1764672815620,3.17,128.39,128.32,9.40199188]
[1764672815826,3.17,128.37,128.31,9.40199188]
[1764672816321,3.22168767,128.35,128.33,0.05495251]
[1764672816826,0.05168767,128.35,128.33,0.05495251]
[1764672819023,3.45168767,128.35,128.33,0.05495251]
[1764672819823,3.4,128.34,128.27,9.40199188]
[1764672820225,3.4,128.34,128.26,16.41909188]
[1764672820425,3.4,128.31,128.26,7.0171]
[1764672820829,3.45649935,128.3,128.27,0.05363805]
[1764672822320,10.47199935,128.3,128.27,0.05363805]
[1764672822525,3.4,128.29,128.27,0.05363805]
[1764672823228,0.05649935,128.3,128.27,0.05363805]
[1764672823633,3.45649935,128.3,128.27,0.05363805]
[1764672823932,0.05649935,128.3,128.27,0.05363805]
[1764672824639,3.45649935,128.3,128.27,0.05363805]
[1764672824826,0.05649935,128.3,128.27,0.05363805]
[1764672825425,0.05649935,128.3,128.27,7.07023805]
[1764672827528,0.05649935,128.3,128.29,7.0158]
[1764672829335,10.4119,128.37,128.29,75.5558]
[1764672829638,3.4,128.36,128.3,7.0151]
[1764672830135,3.4,128.36,128.31,7.0145]
[1764672830439,7.0119,128.37,128.32,0.04974262]
[1764672830440,3.4494051,128.35,128.32,0.04974262]
[1764672833132,10.4622051,128.35,128.32,0.04974262]
[1764672833329,3.4,128.34,128.32,0.04974262]
[1764672834430,3.4494051,128.35,128.32,0.04974262]
[1764672834635,0.0494051,128.35,128.32,0.04974262]
[1764672834839,3.4494051,128.35,128.32,0.04974262]
[1764672835039,0.0494051,128.35,128.32,0.04974262]
[1764672836738,0.0494051,128.35,128.33,7.0135]
[1764672840642,3.4494051,128.35,128.33,7.0135]
[1764672840840,3.4494051,128.35,128.32,0.04974262]
[1764672841543,0.0494051,128.35,128.32,0.04974262]
[1764672842251,3.4494051,128.35,128.32,0.04974262]
[1764672842442,3.4494051,128.35,128.32,7.06384262]
[1764672843541,10.4621051,128.35,128.32,0.04974262]
[1764672843741,0.0494051,128.35,128.32,0.04974262]
[1764672844245,3.4494051,128.35,128.32,0.04974262]
[1764672845347,3.4494051,128.35,128.32,7.06384262]
[1764672846242,3.4494051,128.35,128.32,0.04974262]
[1764672846845,3.4,128.33,128.32,0.04974262]
[1764672848443,3.4,128.32,128.29,7.0157]
[1764672848948,10.3138,128.33,128.29,7.0157]
[1764672849446,0.05911322,128.32,128.3,0.05351541]
[1764672849949,3.35911322,128.32,128.3,0.05351541]
[1764672851241,3.35911322,128.32,128.29,7.0157]
[1764672851242,3.35911322,128.32,128.26,9.40199188]
[1764672851449,3.3,128.31,128.24,11.39618223]
[1764672851749,3.3,128.31,128.23,71.40199188]
[1764672851947,3.3,128.31,128.24,7.0182]
[1764672851948,3.3,128.3,128.24,7.0182]
[1764672852339,0.0505064,128.28,128.26,0.0504074]
[1764672853646,3.3505064,128.28,128.26,0.0504074]
[1764672854751,3.3,128.27,128.26,0.0504074]
[1764672855751,0.0505064,128.28,128.26,0.0504074]
[1764672855953,3.3505064,128.28,128.26,0.0504074]
[1764672858549,3.3,128.27,128.22,9.40199188]
[1764672858853,3.3,128.24,128.18,9.40199188]
[1764672859041,3.3,128.22,128.17,9.40199188]
[1764672859548,0.05840384,128.21,128.18,0.05819628]
[1764672859754,3.35840384,128.21,128.18,0.05819628]
[1764672862160,0.05840384,128.21,128.18,0.05819628]
[1764672862454,7.0178,128.26,128.19,77.58199188]
[1764672862656,3.3,128.27,128.22,7.0195]
[1764672863248,0.05434858,128.26,128.23,0.05694657]
[1764672863556,0.05889498,128.26,128.23,0.05557823]
[1764672864456,0.05889498,128.26,128.24,7.0183]
[1764672865555,0.05889498,128.26,128.23,0.05557823]
[1764672866450,0.05889498,128.26,128.23,7.07427823]
[1764672867757,3.35889498,128.26,128.23,7.07427823]
[1764672868652,0.05889498,128.26,128.23,7.07427823]
[1764672871056,0.05889498,128.26,128.24,7.0184]
[1764672871656,3.3,128.32,128.25,68.1]
[1764672872057,10.3159,128.29,128.23,7.0189]
[1764672872259,10.3159,128.29,128.23,75.1189]
[1764672872464,3.3,128.28,128.23,7.0189]
[1764672872668,3.35394814,128.27,128.24,0.04908323]
[1764672878460,3.22,128.26,128.24,0.04908323]
[1764672880862,3.22,128.26,128.18,14.15383532]
[1764672881063,3.22,128.26,128.19,68.0]
[1764672881457,3.21,128.24,128.19,7.0208]
[1764672881863,3.26653245,128.23,128.2,0.0559564]
[1764672887372,10.28573245,128.23,128.2,0.0559564]
[1764672887674,3.21,128.22,128.2,0.0559564]
[1764672888464,3.21,128.21,128.2,0.0559564]
[1764672889875,10.2297,128.22,128.2,0.0559564]
[1764672890074,3.21,128.21,128.2,0.0559564]
[1764672890579,3.21,128.2,128.14,14.15383532]
[1764672890777,3.21,128.2,128.14,67.92]
[1764672891369,3.21,128.2,128.14,82.07383532]
[1764672891577,0.05498915,128.18,128.16,0.05895929]
[1764672893170,0.05498915,128.18,128.16,7.08165929]
[1764672894274,0.05498915,128.18,128.16,0.05895929]
[1764672894973,3.26498915,128.18,128.16,0.05895929]
[1764672895180,3.26498915,128.18,128.11,14.15383532]
[1764672895478,3.21,128.18,128.12,14.15383532]
[1764672895776,3.21,128.18,128.13,7.0245]
[1764672896178,0.05129967,128.17,128.14,0.04960529]
[1764672896378,3.26129967,128.17,128.14,0.04960529]
[1764672896678,3.26129967,128.17,128.14,7.07350529]
[1764672896879,0.05129967,128.17,128.14,0.04960529]
[1764672897577,0.05129967,128.17,128.15,7.0234]
[1764672897777,3.26129967,128.17,128.14,0.04960529]
[1764672897972,3.26129967,128.17,128.14,62.04960529]
[1764672898372,3.26129967,128.17,128.14,69.07360529]
[1764672899777,3.26129967,128.17,128.14,0.04960529]
[1764672900374,3.21,128.15,128.1,14.15383532]
[1764672900577,3.21,128.17,128.1,14.15383532]
[1764672901079,3.21,128.17,128.12,14.15383532]
[1764672901276,3.21,128.2,128.12,123.43113532]
[1764672901578,0.05300654,128.17,128.15,0.05123023]
[1764672902370,0.05300654,128.17,128.15,7.07453023]
[1764672905080,0.05300654,128.17,128.16,67.88]
[1764672905473,3.21,128.23,128.17,109.2319]
[1764672905671,3.21,128.23,128.17,126.54317245]
[1764672905875,3.21,128.27,128.18,62.0]
[1764672906275,3.21,128.27,128.19,123.40661366]
[1764672906467,3.21,128.27,128.22,0.05482798]
[1764672906468,0.0569023,128.24,128.22,0.05482798]
[1764672907081,0.0569023,128.24,128.22,7.07422798]
[1764672912185,3.08,128.3,128.25,7.0177]
[1764672912384,3.08,128.3,128.24,67.84]
[1764672912688,3.08,128.29,128.24,74.8584]
[1764672913175,3.13973705,128.28,128.25,0.05482029]
[1764672913491,3.13973705,128.28,128.25,7.07252029]
[1764672913990,3.13973705,128.28,128.25,0.05482029]
[1764672914883,3.13973705,128.28,128.19,14.19261366]
[1764672914884,3.08,128.26,128.19,14.19261366]
[1764672915093,3.08,128.26,128.18,67.8]
[1764672915276,3.08,128.26,128.18,129.8]
[1764672915482,3.08,128.26,128.19,109.2177]
[1764672915683,3.08,128.3,128.21,109.2014]
[1764672915985,112.23965879,128.31,128.21,109.2014]
[1764672915986,3.13063647,128.27,128.24,0.05648934]
[1764672916176,3.13063647,128.27,128.24,7.07488934]
[1764672916377,3.13063647,128.27,128.24,0.05648934]
[1764672917085,0.05063647,128.27,128.24,0.05648934]
[1764672917690,0.05063647,128.27,128.25,7.0179]
[1764672918594,3.13063647,128.27,128.24,0.05648934]
[1764672919494,3.13063647,128.27,128.24,7.07478934]
[1764672924294,3.13063647,128.27,128.24,0.05648934]
[1764672927501,3.08,128.26,128.18,109.2281]
[1764672927698,3.08,128.26,128.21,1.9955884]
[1764672928390,3.08,128.26,128.19,69.7555884]
[1764672928598,0.05506935,128.24,128.21,0.05254727]
[1764672929300,3.13506935,128.24,128.21,7.07264727]
[1764672931198,0.05506935,128.24,128.21,2.04813567]
[1764672932305,0.05506935,128.24,128.23,7.0191]
[1764672933301,0.05506935,128.24,128.21,9.06803567]
[1764672933493,0.05506935,128.24,128.21,2.04813567]
[1764672934293,0.05506935,128.24,128.22,69.0195]
[1764672935207,0.05506935,128.24,128.23,1.9955884]
[1764672936006,0.05506935,128.24,128.22,7.0195]
[1764672936196,0.05506935,128.24,128.21,2.04813567]
[1764672936503,0.05506935,128.24,128.22,67.74]
[1764672937094,0.05506935,128.24,128.22,76.7551884]
[1764672937900,3.18506935,128.24,128.22,67.74]
[1764672939104,0.05506935,128.24,128.22,67.74]
[1764672939698,0.05506935,128.24,128.21,62.05254727]
[1764672939900,0.05506935,128.24,128.21,129.79254727]
[1764672940407,0.05506935,128.24,128.22,7.0195]
[1764672941104,0.05506935,128.24,128.22,9.0150884]
[1764672942800,3.37,128.3,128.27,7.0169]
[1764672944009,3.37,128.29,128.27,0.05122281]
[1764672945308,3.37,128.28,128.27,0.05122281]
[1764672949114,4.93,128.28,128.27,0.05122281]
[1764672951109,3.37,128.28,128.27,0.05122281]
[1764672953416,3.37,128.29,128.27,0.05122281]
[1764672954617,3.42129394,128.3,128.27,0.05122281]
[1764672955518,3.42129394,128.3,128.28,7.0163]
[1764672956310,0.05129394,128.3,128.28,7.0163]
[1764672956714,0.05129394,128.3,128.28,21.20891366]
[1764672957019,0.05129394,128.3,128.29,1.9955884]
[1764672957820,0.05129394,128.3,128.28,21.20891366]
[1764672958021,0.05129394,128.3,128.28,23.20450206]
[1764672958719,0.05129394,128.3,128.28,9.0118884]
[1764672958918,0.05129394,128.3,128.28,23.20450206]
[1764672959318,3.37,128.34,128.31,7.0146]
[1764672960319,3.42818878,128.34,128.31,7.07228901]
[1764672961414,0.05818878,128.34,128.31,7.07228901]
[1764672961721,0.05818878,128.34,128.32,7.0141]
[1764672962420,3.42818878,128.34,128.32,7.0141]
[1764672962812,3.42818878,128.34,128.31,0.05768901]
[1764672963911,3.37,128.32,128.31,0.05768901]
[1764672965808,10.3842,128.32,128.28,7.0161]
[1764672966013,3.37,128.31,128.28,7.0161]
[1764672966917,3.42545748,128.31,128.28,7.06707443]
[1764672968621,3.42545748,128.31,128.28,0.05097443]
[1764672968917,3.42545748,128.31,128.26,7.0173]
[1764672968918,3.08,128.29,128.2,16.18820206]
[1764672969123,3.08,128.29,128.19,176.9168]
[1764672969124,3.08,128.29,128.22,1.9955884]
[1764672970028,0.05698442,128.27,128.25,7.0179]
[1764672970324,0.05189011,128.27,128.25,7.07273827]
[1764672972125,0.05189011,128.27,128.25,0.05483827]
[1764672972524,3.13189011,128.27,128.25,0.05483827]
[1764672976222,3.08,128.26,128.25,0.05483827]
[1764672977125,0.05189011,128.27,128.25,0.05483827]
[1764672977323,3.13189011,128.27,128.25,0.05483827]
[1764672980021,10.14889011,128.27,128.25,0.05483827]
[1764672980226,3.08,128.26,128.25,0.05483827]
[1764672981427,0.05189011,128.27,128.25,0.05483827]
[1764672982827,3.13189011,128.27,128.25,7.07263827]
[1764672983229,3.13189011,128.27,128.26,9.4830409]
[1764672986931,3.13189011,128.27,128.25,9.53787917]
[1764672987531,3.13189011,128.27,128.25,0.05483827]
[1764672988533,3.08,128.26,128.25,0.05483827]
[1764672989536,3.08,128.26,128.25,0.00483827]
[1764672990228,0.05189011,128.27,128.25,0.00483827]
[1764672990536,3.13189011,128.27,128.25,0.00483827]
[1764672992027,0.05189011,128.27,128.25,0.00483827]
[1764672992227,0.05189011,128.27,128.26,9.4830409]
[1764672996124,0.05189011,128.27,128.26,16.5004409]
[1764672996334,0.05189011,128.27,128.26,9.4830409]
[1764672998038,0.05189011,128.27,128.25,14.19745193]
[1764672998934,3.32189011,128.27,128.26,9.48447742]
[1764672999135,0.05189011,128.27,128.26,9.48447742]
[1764673000735,0.05189011,128.27,128.25,21.21535193]
[1764673001841,3.27,128.31,128.27,7.0168]
[1764673002032,3.27,128.31,128.28,9.47854062]
[1764673002736,3.32570597,128.31,128.28,9.5336213]
[1764673003342,3.27,128.3,128.28,9.5336213]
[1764673003933,3.27,128.3,128.28,0.05508068]
[1764673004536,3.27,128.3,128.28,9.5336213]
[1764673004936,7.07070597,128.31,128.28,9.5336213]
[1764673005146,10.34070597,128.31,128.28,9.5336213]
[1764673005744,3.27,128.3,128.28,9.5336213]
[1764673006834,3.27,128.3,128.29,9.47854062]
[1764673008942,3.32570597,128.31,128.29,9.47854062]
[1764673010141,0.05570597,128.31,128.29,16.49424062]
[1764673010445,0.05570597,128.31,128.29,21.23351094]
[1764673011245,3.27,128.36,128.3,14.21781094]
[1764673011546,3.27,128.36,128.33,9.48273531]
[1764673011746,3.27,128.38,128.34,9.48273531]
[1764673012253,3.3284527,128.37,128.35,0.05327375]
[1764673012445,3.32311856,128.37,128.35,0.05327375]
[1764673015451,3.27,128.36,128.35,0.05327375]
[1764673016750,3.27,128.35,128.32,9.48273531]
[1764673017051,3.27,128.35,128.29,9.48273531]
[1764673017450,3.27,128.34,128.29,9.48273531]
[1764673017646,3.27,128.34,128.3,9.48273531]
[1764673017847,0.05018623,128.33,128.31,0.0496444]
[1764673018155,0.05018623,128.33,128.32,7.0141]
[1764673020250,3.32018623,128.33,128.31,9.53237971]
[1764673020453,3.32018623,128.33,128.31,0.0496444]
[1764673021456,0.05018623,128.33,128.31,0.0496444]
[1764673021753,0.05018623,128.33,128.31,9.53237971]
[1764673022554,0.05018623,128.33,128.32,7.0141]
[1764673022759,3.27,128.4,128.32,9.48273531]
[1764673022957,3.27,128.4,128.33,9.45956158]
[1764673023154,3.27,128.4,128.33,77.07956158]
[1764673023756,3.31957316,128.38,128.35,0.05201058]
[1764673026658,10.33077316,128.38,128.35,0.05201058]
[1764673026862,3.27,128.37,128.35,0.05201058]
[1764673027863,3.27,128.36,128.32,7.0141]
[1764673028256,3.27,128.35,128.32,7.0141]
[1764673028851,3.32793322,128.35,128.32,7.06590003]
[1764673030469,3.32793322,128.35,128.28,112.25647841]
[1764673030470,3.07,128.33,128.28,9.45956158]
[1764673030764,3.07,128.33,128.26,9.45956158]
[1764673030956,3.07,128.33,128.25,67.6]
[1764673030957,10.084,128.33,128.27,16.47636158]
[1764673031368,3.07,128.32,128.27,16.47636158]
[1764673031864,3.12136877,128.31,128.28,0.05748109]
[1764673032669,10.13626877,128.31,128.28,0.05748109]
[1764673032964,3.07,128.3,128.28,0.05748109]
[1764673034161,10.0853,128.3,128.28,0.05748109]
[1764673034362,3.07,128.29,128.28,0.05748109]
[1764673036465,3.07,128.27,128.23,9.45956158]
[1764673036662,3.07,128.27,128.22,9.45956158]
[1764673036866,3.07,128.27,128.23,9.45956158]
[1764673037466,0.05285259,128.26,128.24,0.05767693]
[1764673038974,0.05285259,128.26,128.24,9.51723851]
[1764673039275,0.05285259,128.26,128.25,9.45956158]
[1764673041678,0.05285259,128.26,128.24,21.29398787]
[1764673045774,0.05285259,128.26,128.24,88.89398787]
[1764673046480,0.05285259,128.26,128.25,67.6]
[1764673047382,0.05285259,128.26,128.25,77.05956844]
[1764673048080,0.05285259,128.26,128.25,67.6]
[1764673048281,0.05285259,128.26,128.25,77.05907934]
[1764673048782,0.05285259,128.26,128.25,84.07707934]
[1764673049177,0.05285259,128.26,128.25,74.618]
[1764673050082,0.05285259,128.26,128.25,84.07687158]
[1764673051788,0.05285259,128.26,128.25,74.618]
[1764673052583,0.05285259,128.26,128.25,7.018]
[1764673053788,3.14285259,128.26,128.24,77.09654851]
[1764673054488,3.14285259,128.26,128.24,67.63767693]
[1764673055386,3.14285259,128.26,128.24,0.05767693]
[1764673056888,3.14285259,128.26,128.24,9.51654851]
[1764673059280,112.30635259,128.26,128.19,14.21781094]
[1764673059484,3.12,128.25,128.18,83.79342972]
[1764673059684,3.12,128.22,128.18,83.79342972]
[1764673060392,0.05524335,128.21,128.19,7.07293844]
[1764673061387,3.17524335,128.21,128.19,0.05183844]
[1764673062292,0.05524335,128.21,128.19,0.05183844]
[1764673063397,0.05524335,128.21,128.19,7.07283844]
[1764673063691,3.17524335,128.21,128.19,0.05183844]
[1764673069803,10.19574335,128.21,128.19,0.05183844]
[1764673069993,3.12,128.2,128.15,7.0231]
[1764673070197,3.12,128.2,128.14,16.21342972]
[1764673070391,3.12,128.2,128.14,69.57561878]
[1764673070799,7.022,128.18,128.14,69.57561878]
[1764673071003,3.17877496,128.17,128.14,69.57561878]
[1764673071401,3.17877496,128.17,128.16,1.99561878]
[1764673071707,3.17877496,128.17,128.14,74.6039]
[1764673072006,3.17877496,128.17,128.16,1.99561878]
[1764673073097,3.17877496,128.17,128.15,1.99561878]
[1764673073698,3.17877496,128.17,128.14,1.99561878]
[1764673075397,3.12,128.16,128.14,1.99561878]
[1764673075603,3.12,128.16,128.12,1.99561878]
[1764673075797,3.12,128.14,128.12,1.99561878]
[1764673077310,10.1441,128.14,128.1,7.0261]
[1764673077512,3.17242337,128.13,128.12,1.99561878]
[1764673078009,0.05242337,128.13,128.12,1.99561878]
[1764673082212,3.17242337,128.13,128.1,1.99561878]
[1764673082602,3.17242337,128.13,128.12,1.99561878]
[1764673082803,0.05242337,128.13,128.12,1.99561878]
[1764673087309,7.0234,128.16,128.12,9.02071878]
[1764673087513,3.12,128.17,128.14,1.99561878]
[1764673087714,3.12,128.17,128.16,1.99561878]
[1764673088714,0.05740418,128.18,128.16,1.99561878]
[1764673088916,111.16741878,128.25,128.16,1.99561878]
[1764673088917,3.21,128.21,128.16,1.99561878]
[1764673089110,3.21,128.21,128.2,1.99561878]
[1764673090512,3.21,128.2,128.19,0.05620095]
[1764673092018,3.2631329,128.22,128.19,0.05620095]
[1764673092324,3.2631329,128.22,128.2,1.99561878]
[1764673093316,3.21,128.21,128.2,1.99561878]
[1764673100427,3.21,128.21,128.19,0.05620095]
[1764673101321,0.0531329,128.22,128.2,7.0207]
[1764673101525,0.0531329,128.22,128.2,10.14110076]
[1764673102727,0.0531329,128.22,128.21,7.0202]
[1764673104426,3.21,128.27,128.22,7.0191]
[1764673104624,3.21,128.27,128.23,3.12040076]
[1764673105326,0.05108777,128.26,128.24,0.05834582]
[1764673107830,3.26108777,128.26,128.24,0.05834582]
[1764673108528,3.21,128.25,128.24,0.05834582]
[1764673109024,10.228,128.25,128.24,0.05834582]
[1764673111635,3.21,128.22,128.18,10.14210076]
[1764673112628,0.05739822,128.21,128.19,0.05878762]
[1764673113032,3.28739822,128.21,128.19,0.05878762]
[1764673115429,3.23,128.2,128.19,0.05878762]
[1764673116236,3.28739822,128.21,128.19,0.05878762]
[1764673117342,0.05739822,128.21,128.19,7.07988762]
[1764673119430,3.21,128.25,128.2,67.5]
[1764673119628,3.21,128.28,128.21,3.12040076]
[1764673120331,3.21,128.27,128.24,7.0184]
[1764673120537,0.05959029,128.26,128.24,7.0184]
[1764673122225,67.5,128.31,128.26,7.017]
[1764673122226,3.21,128.31,128.26,7.017]
[1764673123326,3.21,128.29,128.27,0.05642075]
[1764673127839,3.21,128.28,128.27,0.05642075]
[1764673129828,3.21,128.29,128.27,0.05642075]
[1764673131933,10.226,128.29,128.27,0.05642075]
[1764673132342,3.21,128.28,128.27,0.05642075]
[1764673133736,3.21,128.28,128.21,17.3382117]
[1764673133737,3.21,128.25,128.21,3.12040076]
[1764673133938,3.21,128.25,128.21,70.58040076]
[1764673134338,3.21,128.25,128.22,7.0196]
[1764673134843,3.26801211,128.25,128.22,7.07306384]
[1764673135343,3.26801211,128.25,128.22,0.05346384]
[1764673144938,3.26801211,128.25,128.22,7.07306384]
[1764673145141,10.28641211,128.25,128.22,0.05346384]
[1764673145352,3.21,128.24,128.22,0.05346384]
[1764673147553,10.2291,128.23,128.22,0.00346384]
[1764673147751,3.21,128.22,128.19,14.21781094]
[1764673148440,3.21,128.21,128.19,14.21781094]
[1764673148750,3.26848913,128.21,128.19,14.27132913]
[1764673148948,3.26848913,128.21,128.19,0.05351819]
[1764673149347,0.05848913,128.21,128.19,0.05351819]
[1764673149546,0.05848913,128.21,128.19,14.27132913]
[1764673150046,0.05848913,128.21,128.2,14.21781094]
[1764673150241,3.27,128.26,128.2,14.21781094]
[1764673150439,3.27,128.26,128.21,14.21781094]
[1764673150939,3.27,128.25,128.21,14.21781094]
[1764673151340,3.27,128.23,128.22,0.05829237]
[1764673155158,0.05199653,128.24,128.22,0.05829237]
[1764673155356,3.32199653,128.24,128.22,14.27610331]
[1764673155861,3.32199653,128.24,128.22,21.29570331]
[1764673156345,3.32199653,128.24,128.22,14.27610331]
[1764673156860,3.32199653,128.24,128.22,0.05829237]
[1764673162366,3.32199653,128.24,128.2,21.23851094]
[1764673162759,3.32199653,128.24,128.2,7.0207]
[1764673163262,3.27,128.23,128.21,0.05277534]
[1764673166766,3.27,128.23,128.21,7.07267534]
[1764673167664,3.27,128.23,128.22,7.0196]
[1764673174672,3.32199653,128.24,128.22,7.0196]
[1764673175275,3.32199653,128.24,128.23,7.0191]
[1764673175479,0.05199653,128.24,128.23,7.0191]
[1764673175866,3.32199653,128.24,128.23,7.0191]
[1764673178665,3.32199653,128.24,128.22,14.21781094]
[1764673178666,3.32199653,128.24,128.22,21.23741094]
[1764673179273,3.32199653,128.24,128.22,14.21781094]
[1764673179574,3.32199653,128.24,128.21,14.27058628]
[1764673180473,3.23,128.23,128.21,14.27058628]
[1764673181273,0.05199653,128.24,128.22,14.21781094]
[1764673181774,3.28199653,128.24,128.22,14.21781094]
[1764673182379,3.28199653,128.24,128.22,21.23721094]
[1764673183272,3.23,128.23,128.21,4.07058628]
[1764673183474,3.23,128.23,128.21,0.05277534]
[1764673185472,3.23,128.22,128.21,0.05277534]
[1764673187275,3.28199653,128.24,128.21,0.05277534]
[1764673188875,0.05199653,128.24,128.21,7.07257534]
[1764673189775,3.28199653,128.24,128.21,7.07257534]
[1764673189981,3.28199653,128.24,128.22,7.0196]
[1764673192475,3.28199653,128.24,128.21,7.07287534]
[1764673197879,10.30069653,128.24,128.21,0.05277534]
[1764673198085,3.23,128.23,128.21,0.05277534]
[1764673200677,10.2496,128.22,128.21,0.05277534]
[1764673200980,3.28199653,128.24,128.21,0.05277534]
[1764673201885,3.28199653,128.24,128.21,2.05024471]
[1764673202283,3.28199653,128.24,128.21,0.05277534]
[1764673203390,3.23,128.22,128.21,0.05277534]
[1764673210199,3.12,128.21,128.17,14.28264987]
[1764673211095,0.05856755,128.2,128.18,0.04908696]
[1764673211395,3.12,128.19,128.18,0.04908696]
[1764673212196,0.05856755,128.2,128.18,0.04908696]
[1764673212399,0.05856755,128.2,128.18,2.04655633]
[1764673212595,3.12,128.25,128.18,16.3292062]
[1764673212785,3.12,128.24,128.2,7.0205]
[1764673213500,3.12,128.22,128.21,0.05537826]
[1764673215707,67.34,128.26,128.21,0.05537826]
[1764673216005,9.64332474,128.34,128.21,0.05537826]
[1764673216006,3.12,128.31,128.25,16.28011924]
[1764673216305,3.12,128.31,128.27,16.23558429]
[1764673216601,3.12,128.31,128.26,14.23811492]
[1764673216804,3.17527362,128.3,128.27,0.05648785]
[1764673217397,3.12,128.29,128.27,0.05648785]
[1764673218103,3.12,128.29,128.24,1.99746937]
[1764673219001,3.12,128.29,128.25,0.05141892]
[1764673219204,3.12,128.27,128.25,0.05141892]
[1764673219595,3.12,128.25,128.18,14.23811492]
[1764673219796,3.12,128.23,128.17,14.23811492]
[1764673220403,3.12,128.23,128.17,21.26021492]
[1764673220606,0.05918264,128.21,128.19,0.05320434]
[1764673220903,3.17918264,128.21,128.2,1.99746937]
[1764673221309,3.17918264,128.21,128.19,0.05320434]
[1764673222801,3.17918264,128.21,128.2,1.99746937]
[1764673224608,3.17918264,128.21,128.19,0.05320434]
[1764673224913,0.05918264,128.21,128.19,0.05320434]
[1764673225109,0.05918264,128.21,128.2,3.12064311]
[1764673225612,0.05918264,128.21,128.19,0.05320434]
[1764673225613,0.05918264,128.21,128.19,3.17384745]
[1764673231305,0.05918264,128.21,128.19,10.19494745]
[1764673232807,0.05918264,128.21,128.19,7.07430434]
[1764673234315,0.05918264,128.21,128.19,21.32309149]
[1764673234513,3.09,128.26,128.21,7.0199]
[1764673235011,3.09,128.26,128.22,3.12064311]
[1764673235211,3.09,128.31,128.24,3.12064311]
[1764673235417,3.09,128.31,128.26,3.12064311]
[1764673235713,3.14456097,128.3,128.27,0.05960226]
[1764673236612,10.15996097,128.3,128.27,0.05960226]
[1764673236809,3.09,128.29,128.27,0.05960226]
[1764673238112,3.09,128.28,128.22,14.24878715]
[1764673238315,3.09,128.28,128.21,24.38933026]
[1764673238719,3.08,128.26,128.21,14.24878715]
[1764673238920,3.08,128.26,128.2,81.54878715]
[1764673239122,3.13065566,128.24,128.22,0.05693579]
[1764673239324,3.13777912,128.24,128.22,0.05693579]
[1764673242322,0.05777912,128.24,128.22,7.07643579]
[1764673243125,0.05777912,128.24,128.22,21.32522294]
[1764673246928,0.05777912,128.24,128.23,67.28]
[1764673248927,0.05777912,128.24,128.23,74.2991]
[1764673251934,3.08,128.31,128.26,7.017]
[1764673252430,3.08,128.31,128.27,7.0169]
[1764673252827,3.08,128.29,128.28,0.0571595]
[1764673253024,3.08,128.29,128.23,81.49898075]
[1764673253233,3.08,128.29,128.23,67.28]
[1764673254242,3.13717358,128.27,128.25,0.0598112]
[1764673255141,3.08,128.26,128.25,0.0598112]
[1764673255944,10.0974,128.26,128.25,0.0598112]
[1764673258336,3.08,128.21,128.18,14.21898075]
[1764673258534,3.08,128.21,128.17,14.21898075]
[1764673258731,3.08,128.21,128.17,21.24118075]
[1764673258935,3.08,128.21,128.17,7.0222]
[1764673259342,0.05202375,128.2,128.17,7.0222]
[1764673259539,0.05202375,128.2,128.16,143.47898075]
[1764673259741,0.05202375,128.2,128.18,21.24078075]
[1764673260046,0.05202375,128.2,128.19,14.21898075]
[1764673260343,0.05202375,128.2,128.18,21.24078075]
[1764673260949,0.05202375,128.2,128.18,74.2818]
[1764673262351,0.05202375,128.2,128.18,88.50078075]
[1764673262545,3.08,128.28,128.2,109.2115]
[1764673262739,3.08,128.28,128.2,123.44654387]
[1764673263045,3.08,128.28,128.21,14.23504387]
[1764673263250,3.08,128.28,128.22,67.26]
[1764673263551,3.13420669,128.26,128.24,0.05660514]
[1764673263850,3.13289312,128.26,128.24,0.05660514]
[1764673266754,10.15059312,128.26,128.24,0.05660514]
[1764673266953,3.08,128.25,128.24,0.05660514]
[1764673267759,3.08,128.24,128.2,74.2802]
[1764673267959,3.08,128.24,128.2,7.0202]
[1764673268652,3.13,128.22,128.2,7.0202]
[1764673269457,3.1872339,128.23,128.2,7.0202]
[1764673270251,3.1872339,128.23,128.2,21.25524387]
[1764673270454,0.0572339,128.23,128.2,21.25524387]
[1764673271246,0.0572339,128.23,128.2,88.51524387]
[1764673271448,3.13,128.29,128.22,14.23504387]
[1764673271652,3.13,128.29,128.23,14.23504387]
[1764673271854,3.13,128.32,128.24,109.1755]